bitfinex-derivatives/quotes_ETHF0:USTF0_20250627
["timestamp","ask_amount","ask_price","bid_price","bid_amount"]
[1751016005845,1.47272,2453.1,2452.7,0.6671]
[1751016005846,1.47272,2453.1,2453.0,0.6736]
[1751016006049,2.83032,2453.1,2453.0,0.6736]
[1751016006244,0.81507,2452.9,2452.8,0.81511]
[1751016006544,2.17266,2453.0,2452.8,1.48871]
[1751016006950,2.17266,2453.0,2452.9,0.81507]
[1751016007142,0.6577,2453.1,2452.9,0.81507]
[1751016007346,1.47272,2453.1,2452.9,0.81507]
[1751016007648,1.47272,2453.1,2453.0,0.81504]
[1751016007850,0.81504,2453.0,2452.9,0.81506]
[1751016008151,0.81504,2453.0,2452.8,3.5958886]
[1751016008152,0.81507,2452.9,2452.8,0.6736]
[1751016008654,0.81512,2452.8,2452.6,84.43195]
[1751016009056,0.81512,2452.8,2452.7,0.81514]
[1751016009259,0.81512,2452.8,2452.6,87.3542386]
[1751016009452,0.81512,2452.8,2452.6,38.4502386]
[1751016009756,0.6577,2453.1,2452.9,0.81506]
[1751016010056,1.47271,2453.1,2453.0,0.7103]
[1751016010446,0.81499,2453.2,2453.1,0.81501]
[1751016010652,0.6698,2453.4,2453.0,3.6325886]
[1751016010957,0.81491,2453.4,2453.3,2.9222886]
[1751016011459,4.553,2453.5,2453.3,0.81493]
[1751016011651,4.02268,2453.5,2453.3,0.81493]
[1751016011854,3.2078,2453.5,2453.4,1.47621]
[1751016012357,0.81482,2453.7,2453.5,0.81485]
[1751016012558,0.81481,2453.7,2453.6,0.81484]
[1751016012857,0.92605417,2453.7,2453.5,2.9222886]
[1751016013058,3.8813,2453.8,2453.5,2.9222886]
[1751016013253,0.92605218,2453.7,2453.5,2.9222886]
[1751016013457,0.81484,2453.6,2453.5,3.7371586]
[1751016013656,0.81484,2453.6,2453.5,0.81487]
[1751016013958,0.81487,2453.5,2453.4,0.6613]
[1751016014150,0.81485,2453.6,2453.4,1.47618]
[1751016014348,0.81483,2453.7,2453.5,0.81487]
[1751016015060,6.8035886,2453.8,2453.5,0.81487]
[1751016015355,0.81487,2453.6,2453.4,1.47619]
[1751016017258,1.4483,2453.7,2453.4,0.6613]
[1751016017446,0.81487,2453.5,2453.4,0.6613]
[1751016017760,0.81486,2453.6,2453.4,1.47621]
[1751016018459,0.81487,2453.5,2453.4,1.47621]
[1751016018662,0.81487,2453.5,2453.4,0.6613]
[1751016019056,0.81487,2453.5,2453.2,40.8]
[1751016019358,0.81494,2453.3,2453.2,65.797]
[1751016019556,0.81494,2453.3,2453.2,40.8]
[1751016019755,0.81501,2453.1,2453.0,0.6583]
[1751016019960,0.815,2453.2,2453.0,1.47333]
[1751016020258,0.81501,2453.1,2453.0,0.6583]
[1751016022660,4.0228,2453.2,2453.0,1.47333]
[1751016022860,0.81501,2453.1,2453.0,0.6583]
[1751016023061,4.0228,2453.2,2453.0,1.47334]
[1751016023362,0.81501,2453.1,2453.0,1.47334]
[1751016023862,0.81501,2453.1,2453.0,0.6583]
[1751016024967,0.81507,2452.9,2452.8,2.32950569]
[1751016025263,0.81507,2452.9,2452.8,1.61130569]
[1751016027067,1.52335,2453.0,2452.8,1.61130569]
[1751016027364,1.52335,2453.0,2452.9,0.81507]
[1751016027365,0.7083,2453.0,2452.9,0.81507]
[1751016027861,1.52334,2453.0,2452.8,0.81508]
[1751016028058,1.52335,2453.0,2452.8,0.8151]
[1751016028260,1.52335,2453.0,2452.9,0.81507]
[1751016028467,0.7083,2453.0,2452.9,0.81507]
[1751016028766,1.52337,2453.0,2452.8,0.8151]
[1751016029359,0.81507,2452.9,2452.7,35.8874986]
[1751016029559,0.7083,2453.0,2452.8,0.81511]
[1751016029764,0.7083,2453.0,2452.7,35.8875086]
[1751016029963,0.81511,2452.8,2452.7,3.5833886]
[1751016030165,0.81511,2452.8,2452.7,32.1501]
[1751016030466,0.81511,2452.8,2452.7,0.6611]
[1751016032565,0.81514,2452.7,2452.6,3.2078]
[1751016033268,2.15404,2452.7,2452.6,3.2078]
[1751016035373,2.15404,2452.7,2452.4,1.61130569]
[1751016035374,0.81521,2452.5,2452.4,1.61130569]
[1751016036168,2.24571,2452.5,2452.4,1.61130569]
[1751016037166,1.4305,2452.5,2452.3,1.61130569]
[1751016037364,0.81524,2452.4,2452.3,1.61130569]
[1751016037869,0.81524,2452.4,2452.2,31.31610569]
[1751016038071,0.81524,2452.4,2452.2,29.7048]
[1751016038270,0.81524,2452.4,2452.2,4.7108]
[1751016038575,0.81527,2452.3,2452.2,3.2078]
[1751016041773,0.81531,2452.2,2452.1,0.6699]
[1751016041972,2.84651,2452.2,2452.1,0.6699]
[1751016042876,0.81534,2452.1,2452.0,1.61130569]
[1751016043079,4.00608476,2452.1,2452.0,1.61130569]
[1751016043278,5.41948476,2452.1,2452.0,1.61130569]
[1751016043478,0.81537,2452.0,2451.9,1.61130569]
[1751016043675,5.1510586,2452.0,2451.9,1.61130569]
[1751016043882,0.81551,2451.6,2451.5,3.22317201]
[1751016044067,0.8156,2451.3,2451.0,0.7097]
[1751016044270,0.8156,2451.3,2450.6,1.3275]
[1751016044271,6.11277624,2451.1,2450.6,4.84350042]
[1751016044476,6.11277624,2451.1,2450.9,4.02768042]
[1751016044777,6.11277624,2451.1,2450.7,0.7097]
[1751016044778,6.11277624,2451.1,2450.8,4.02768042]
[1751016044973,6.11277624,2451.1,2450.8,0.81576]
[1751016044974,4.00616764,2451.1,2450.8,0.81576]
[1751016045180,0.81572,2451.0,2450.7,4.4477786]
[1751016045481,0.81571,2451.0,2450.7,4.4477786]
[1751016045872,0.81571,2451.0,2450.7,8.47545902]
[1751016046581,0.81577,2450.8,2450.7,0.7097]
[1751016046978,0.81575,2450.9,2450.7,0.7097]
[1751016047770,2.23943,2451.0,2450.7,0.7097]
[1751016048378,0.81575,2450.9,2450.7,0.7097]
[1751016049783,2.23943,2451.0,2450.7,0.7097]
[1751016050083,2.23943,2451.0,2450.7,1.5255]
[1751016050278,1.4237,2451.0,2450.7,0.7097]
[1751016050583,3.19048764,2451.1,2450.9,0.81572]
[1751016050779,4.00616764,2451.1,2450.9,0.81572]
[1751016051886,0.8157,2451.0,2450.9,0.81572]
[1751016052181,4.00617764,2451.1,2450.9,0.81572]
[1751016052369,4.00617764,2451.1,2450.9,0.81571]
[1751016052676,0.8157,2451.0,2450.9,0.81571]
[1751016052879,3.19048764,2451.1,2450.7,0.7097]
[1751016053074,0.81577,2450.8,2450.7,1.52548]
[1751016053282,0.81576,2450.9,2450.8,0.81577]
[1751016053677,0.81574,2450.9,2450.8,0.81577]
[1751016054886,0.81574,2450.9,2450.7,0.7097]
[1751016055077,0.81577,2450.8,2450.7,1.52549]
[1751016055277,0.81576,2450.9,2450.7,1.52549]
[1751016055578,0.81572,2451.0,2450.8,0.81575]
[1751016056185,8.36136624,2451.1,2450.9,0.81574]
[1751016056382,3.19048764,2451.1,2451.0,0.8157]
[1751016056680,3.2078,2451.4,2451.3,0.81559]
[1751016060175,4.02337,2451.4,2451.3,0.81559]
[1751016060986,3.2078,2451.4,2451.3,0.81559]
[1751016061383,4.02337,2451.4,2451.3,0.81559]
[1751016061692,3.2078,2451.4,2451.3,0.81559]
[1751016062190,4.02337,2451.4,2451.3,0.81559]
[1751016062490,3.2078,2451.4,2451.3,0.81559]
[1751016062879,3.2078,2451.8,2451.7,0.81547]
[1751016063082,4.18298874,2451.8,2451.7,0.81547]
[1751016063290,0.97518874,2451.8,2451.7,0.81547]
[1751016063491,0.97518874,2451.8,2451.7,2.16067]
[1751016064091,0.97518874,2451.8,2451.7,7.16067]
[1751016064485,0.97518874,2451.8,2451.7,2.16067]
[1751016065685,0.81536,2452.1,2452.0,0.81537]
[1751016065992,1.7909714,2452.1,2452.0,0.81537]
[1751016066191,0.9756114,2452.1,2451.7,0.81546]
[1751016066393,0.9756114,2452.0,2451.7,0.81546]
[1751016066696,0.9756114,2451.9,2451.7,0.81546]
[1751016066885,1.4487,2452.1,2451.7,0.81546]
[1751016067087,0.81544,2451.8,2451.7,0.81546]
[1751016067691,0.81543,2451.9,2451.7,0.81546]
[1751016068694,0.81543,2451.9,2451.8,0.81544]
[1751016068893,0.81543,2451.9,2451.6,6.494]
[1751016068894,0.81543,2451.9,2451.7,0.81545]
[1751016069393,0.81543,2451.9,2451.8,0.81544]
[1751016069892,0.81543,2451.9,2451.7,0.81547]
[1751016070285,0.8154,2452.0,2451.7,0.81547]
[1751016070793,1.4487,2452.1,2451.6,6.494]
[1751016070993,0.81545,2451.8,2451.6,7.3095]
[1751016071394,0.81543,2451.9,2451.6,7.3095]
[1751016071893,0.6594,2452.0,2451.6,7.3095]
[1751016071894,0.81544,2451.8,2451.6,7.3095]
[1751016072394,0.81544,2451.8,2451.6,6.494]
[1751016072594,0.81541,2451.9,2451.6,7.30949]
[1751016072797,1.47479,2452.0,2451.7,0.81546]
[1751016073394,0.81542,2451.9,2451.7,0.81546]
[1751016073990,0.81547,2451.8,2451.6,6.494]
[1751016074202,1.3488,2451.9,2451.6,6.494]
[1751016074397,0.6594,2452.0,2451.6,6.494]
[1751016074591,1.4748,2452.0,2451.7,3.7377486]
[1751016074896,1.79302947,2451.9,2451.7,3.7377486]
[1751016075198,0.81541,2451.9,2451.7,3.7377486]
[1751016076497,0.81547,2451.7,2451.6,6.494]
[1751016078595,0.81547,2451.7,2451.5,0.6783]
[1751016078596,0.8155,2451.6,2451.5,0.6783]
[1751016078892,6.3124886,2451.7,2451.1,32.8873]
[1751016079196,0.8156,2451.3,2451.2,0.7017]
[1751016079398,0.81559,2451.4,2451.2,3.6239886]
[1751016079599,3.9322,2451.8,2451.2,3.6239886]
[1751016079794,0.81556,2451.5,2451.4,2.9222886]
[1751016080296,0.81556,2451.5,2451.2,5.8551186]
[1751016080499,0.81558,2451.4,2451.2,5.0394886]
[1751016080797,0.8156,2451.3,2451.2,0.7017]
[1751016082999,0.81574,2450.9,2450.8,3.2078]
[1751016083203,0.81577,2450.8,2450.6,7.9102]
[1751016083498,0.81575,2450.9,2450.6,39.04374043]
[1751016083698,0.81575,2450.9,2450.8,2.9222886]
[1751016084093,0.81575,2450.9,2450.7,3.2078]
[1751016084299,0.81572,2451.0,2450.7,4.0236]
[1751016084495,0.81572,2451.0,2450.8,2.9222886]
[1751016084901,0.81574,2450.9,2450.8,2.9222886]
[1751016086494,0.81572,2451.0,2450.8,3.7380586]
[1751016086999,0.81574,2450.9,2450.8,3.7380586]
[1751016087198,0.81574,2450.9,2450.8,2.9222886]
[1751016087389,0.81577,2450.8,2450.7,3.2078]
[1751016087903,0.8158,2450.7,2450.6,1.4162]
[1751016088099,0.81587,2450.5,2450.4,3.2078]
[1751016088301,0.81587,2450.5,2450.4,31.491]
[1751016088699,0.81587,2450.5,2450.4,6.495]
[1751016088901,0.8159,2450.4,2450.3,44.3940886]
[1751016089215,1.51216,2450.6,2450.4,0.81589]
[1751016089502,0.81587,2450.5,2450.3,35.9000086]
[1751016089803,0.6963,2450.6,2450.4,0.8159]
[1751016090006,2.92525,2450.6,2450.4,0.8159]
[1751016090202,0.81587,2450.5,2450.3,35.8999986]
[1751016090805,2.1094,2450.6,2450.3,35.0840886]
[1751016091005,0.81586,2450.6,2450.5,2.9222886]
[1751016091199,0.81584,2450.6,2450.5,2.9222886]
[1751016091804,0.81582,2450.7,2450.5,3.7381386]
[1751016092308,0.81584,2450.6,2450.5,3.7381386]
[1751016092706,0.81583,2450.7,2450.5,3.7381386]
[1751016092907,0.81584,2450.6,2450.5,3.7381386]
[1751016093516,6.1300886,2450.7,2450.3,0.6718]
[1751016093704,0.8159,2450.4,2450.3,0.6718]
[1751016098618,0.81594,2450.3,2450.2,24.997]
[1751016098911,0.81597,2450.2,2450.1,3.2078]
[1751016100416,0.81604,2450.0,2449.9,25.6735]
[1751016101214,2.0423,2450.1,2449.7,4.02393]
[1751016101215,0.81607,2449.9,2449.7,4.02393]
[1751016101516,0.81607,2449.9,2449.8,24.998]
[1751016101901,0.81606,2450.0,2449.8,25.8141]
[1751016102308,2.85832,2450.1,2449.9,0.81607]
[1751016102508,2.85832,2450.1,2449.9,3.7383586]
[1751016102709,0.81596,2450.3,2450.1,0.816]
[1751016102909,6.491,2450.4,2450.1,2.9222886]
[1751016103207,0.81597,2450.2,2450.1,2.9222886]
[1751016103608,0.81597,2450.2,2450.1,3.6038886]
[1751016107117,0.81597,2450.2,2450.1,0.6816]
[1751016107522,3.8787,2450.6,2450.1,3.6038886]
[1751016107714,4.02366,2450.6,2450.4,3.7381786]
[1751016107913,4.02366,2450.6,2450.5,0.6757]
[1751016108221,5.00229568,2450.6,2450.5,0.6757]
[1751016109220,5.00229568,2450.6,2450.5,1.49157]
[1751016109416,0.81584,2450.6,2450.5,1.49157]
[1751016109612,0.81583,2450.7,2450.6,0.81584]
[1751016109818,1.79462651,2450.7,2450.6,2.9222886]
[1751016110715,0.8158,2450.7,2450.6,2.9222886]
[1751016111118,0.8158,2450.7,2450.5,1.49155]
[1751016111523,0.8158,2450.7,2450.6,0.81584]
[1751016111727,0.81579,2450.8,2450.7,0.8158]
[1751016111929,0.97951034,2450.8,2450.7,0.8158]
[1751016112128,1.79528034,2450.8,2450.7,0.8158]
[1751016114921,0.97951034,2450.8,2450.7,0.8158]
[1751016115125,1.79528034,2450.8,2450.7,0.8158]
[1751016115430,0.97951034,2450.8,2450.7,0.8158]
[1751016116924,6.491,2451.4,2450.7,5.8158]
[1751016117136,0.81564,2451.3,2451.2,0.81564]
[1751016117629,0.81564,2451.3,2451.2,1.54064]
[1751016117824,3.8696,2451.5,2451.2,0.725]
[1751016118025,0.8156,2451.3,2451.2,0.725]
[1751016119530,4.68516,2451.5,2451.3,0.81557]
[1751016119730,0.81559,2451.4,2451.2,1.54062]
[1751016120039,0.81559,2451.4,2451.3,0.8156]
[1751016120625,0.8156,2451.3,2451.2,0.725]
[1751016120927,3.8696,2451.5,2451.1,0.81567]
[1751016120928,6.7918886,2451.5,2451.1,0.81567]
[1751016121123,0.81564,2451.3,2451.1,0.81567]
[1751016121528,0.81564,2451.2,2451.1,0.81567]
[1751016122034,0.81563,2451.3,2451.1,0.81567]
[1751016122933,0.81567,2451.1,2450.9,11.22412]
[1751016123430,0.81567,2451.1,2450.9,4.73312]
[1751016123635,1.51257,2451.1,2450.9,4.73312]
[1751016125134,0.8157,2451.0,2450.9,4.73312]
[1751016125327,0.6969,2451.1,2450.9,3.9174]
[1751016125535,1.3118,2451.2,2451.0,0.81569]
[1751016125536,0.81566,2451.2,2451.0,0.81569]
[1751016125837,0.81567,2451.1,2451.0,0.81569]
[1751016126035,0.81564,2451.2,2451.1,0.81566]
[1751016126338,0.81567,2451.1,2450.9,6.8396886]
[1751016126536,0.81567,2451.1,2450.9,7.6553986]
[1751016126736,0.81566,2451.2,2451.0,0.8157]
[1751016127240,0.81567,2451.1,2450.9,7.6553986]
[1751016127738,0.81567,2451.1,2451.0,0.8157]
[1751016128245,0.8157,2451.0,2450.9,6.8396886]
[1751016128645,0.8157,2451.0,2450.9,0.7096]
[1751016128939,5.6677786,2451.4,2450.9,4.4475986]
[1751016128940,2.03893,2451.4,2450.9,4.4475986]
[1751016129239,0.81567,2451.1,2450.9,4.4475986]
[1751016130142,0.8157,2451.0,2450.9,3.6318886]
[1751016130335,0.81569,2451.1,2450.9,3.6318886]
[1751016130839,0.81569,2451.1,2451.0,0.8157]
[1751016132240,0.81569,2451.1,2450.9,4.4475986]
[1751016132442,0.6803,2451.2,2451.0,0.8157]
[1751016132640,0.8157,2451.0,2450.9,4.4475986]
[1751016132940,1.4011,2451.1,2450.9,3.6318886]
[1751016132941,2.21679,2451.1,2450.9,3.6318886]
[1751016133139,0.8157,2451.0,2450.9,0.7096]
[1751016133338,0.8157,2451.0,2450.8,4.02355]
[1751016133546,1.4011,2451.1,2450.7,8.68637]
[1751016133547,0.81574,2450.9,2450.7,8.68637]
[1751016133736,0.81574,2450.9,2450.7,2.20237]
[1751016133937,0.81574,2450.9,2450.8,0.81577]
[1751016134343,0.6803,2451.2,2451.0,0.8157]
[1751016134644,0.81567,2451.1,2451.0,0.8157]
[1751016134846,0.8157,2451.0,2450.9,3.7380086]
[1751016135044,0.8157,2451.0,2450.9,2.9222886]
[1751016135247,0.6803,2451.2,2450.8,0.81575]
[1751016135547,0.81577,2450.8,2450.7,0.7175]
[1751016135745,0.81577,2450.8,2450.7,6.484]
[1751016136849,2.94077,2450.8,2450.7,6.484]
[1751016137145,5.3328,2450.8,2450.5,2.42998588]
[1751016137342,0.81586,2450.6,2450.4,3.24586588]
[1751016137648,0.81587,2450.5,2450.4,2.42998588]
[1751016139348,0.81585,2450.6,2450.4,3.24586588]
[1751016139548,0.81585,2450.6,2450.4,2.42998588]
[1751016139847,1.4522,2450.7,2450.4,5.35227448]
[1751016140045,3.8806,2450.8,2450.7,0.8158]
[1751016140250,3.2078,2450.8,2450.7,0.8158]
[1751016140450,3.2078,2450.8,2450.7,1.4745]
[1751016140946,7.29968,2451.1,2450.9,0.81571]
[1751016141158,7.29968,2451.1,2451.0,0.8157]
[1751016141450,3.8856,2451.2,2451.0,0.81568]
[1751016141750,0.81569,2451.1,2451.0,0.81568]
[1751016142652,4.70126,2451.2,2451.1,0.81567]
[1751016142851,0.81569,2451.1,2451.0,0.81569]
[1751016143240,4.70126,2451.2,2451.1,0.81567]
[1751016143445,5.67525898,2451.2,2451.1,0.81567]
[1751016143747,5.67525898,2451.2,2450.8,4.9909886]
[1751016143953,0.81568,2451.1,2451.0,0.81568]
[1751016144151,0.97431384,2451.1,2451.0,0.81568]
[1751016144853,1.78998384,2451.1,2451.0,0.81568]
[1751016145053,0.97431384,2451.1,2451.0,0.81568]
[1751016147553,1.78998384,2451.1,2451.0,0.81568]
[1751016147754,0.97431384,2451.1,2451.0,0.81568]
[1751016148055,0.97431384,2451.1,2451.0,0.8157]
[1751016148254,0.97431384,2451.1,2451.0,3.7379886]
[1751016149053,0.97431384,2451.1,2451.0,5.1639886]
[1751016149447,0.81555,2451.5,2451.4,0.81555]
[1751016149645,1.7899012,2451.5,2451.4,0.81555]
[1751016150353,0.81564,2451.2,2451.1,2.96684]
[1751016150548,0.81564,2451.2,2451.1,0.7252]
[1751016150952,1.7899912,2451.2,2451.1,0.7252]
[1751016151353,0.9743512,2451.2,2451.1,1.54087]
[1751016151656,1.7899912,2451.2,2451.1,1.54087]
[1751016152056,1.7899912,2451.2,2451.1,0.7252]
[1751016152245,1.7899912,2451.2,2451.1,1.54087]
[1751016152749,1.7899912,2451.2,2451.1,3.35377]
[1751016152950,1.7899912,2451.2,2451.1,2.5381]
[1751016153262,1.7899912,2451.2,2451.1,1.8129]
[1751016153660,4.9977912,2451.2,2451.1,2.62857]
[1751016153859,7.0596912,2451.2,2451.1,1.8129]
[1751016154760,7.7283912,2451.2,2451.1,1.8129]
[1751016156755,4.1821512,2451.2,2451.1,2.62857]
[1751016156955,0.9743512,2451.2,2451.1,2.62857]
[1751016157157,3.2078,2451.5,2451.3,0.8156]
[1751016157356,0.97380399,2451.4,2451.3,3.7378886]
[1751016158363,0.97380399,2451.4,2451.3,4.19152093]
[1751016159863,1.78937399,2451.4,2451.3,4.19152093]
[1751016160166,1.78937399,2451.4,2451.3,0.45363233]
[1751016160866,3.14037399,2451.4,2451.3,0.45363233]
[1751016161157,6.06266259,2451.4,2451.3,0.45363233]
[1751016166971,6.06266259,2451.4,2451.3,2.26753233]
[1751016171671,3.14037399,2451.4,2451.3,2.26753233]
[1751016172173,3.14044925,2451.4,2451.3,2.26753233]
[1751016173073,6.06273785,2451.4,2451.3,2.26753233]
[1751016179078,12.54073785,2451.4,2451.3,2.26753233]
[1751016180270,6.06273785,2451.4,2451.3,2.26753233]
[1751016180478,12.54073785,2451.4,2451.3,2.26753233]
[1751016181580,3.14044925,2451.4,2451.3,2.26753233]
[1751016181783,1.78944925,2451.4,2451.3,2.26753233]
[1751016183380,1.78944925,2451.4,2451.3,2.93403233]
[1751016184378,0.97387925,2451.4,2451.3,4.43863233]
[1751016184583,0.97387925,2451.4,2451.3,5.75373233]
[1751016186884,1.78944925,2451.4,2451.3,5.75373233]
[1751016187182,1.78944925,2451.4,2451.3,4.93813233]
[1751016187382,1.78944925,2451.4,2451.3,5.75373233]
[1751016187687,1.78944925,2451.4,2451.3,4.93813233]
[1751016188388,1.78944925,2451.4,2451.3,5.75373233]
[1751016189286,1.78944925,2451.4,2451.3,3.62303233]
[1751016190491,1.78944925,2451.4,2451.3,2.93403233]
[1751016192888,4.99724925,2451.4,2451.3,2.93403233]
[1751016194386,4.99724925,2451.4,2451.3,2.26753233]
[1751016200892,7.06614925,2451.4,2451.3,2.26753233]
[1751016206890,13.53814925,2451.4,2451.3,2.26753233]
[1751016214907,11.46124925,2451.4,2451.3,2.26753233]
[1751016217309,11.46124925,2451.4,2451.3,4.50613233]
[1751016217611,4.99724925,2451.4,2451.3,4.50613233]
[1751016219104,7.91953785,2451.4,2451.3,4.50613233]
[1751016219501,9.33133785,2451.4,2451.3,4.50613233]
[1751016222412,7.91953785,2451.4,2451.3,4.50613233]
[1751016222911,7.91953785,2451.4,2451.3,4.70243586]
[1751016225207,9.35583785,2451.4,2451.3,4.70243586]
[1751016226219,9.35583785,2451.4,2451.3,4.87593586]
[1751016226811,14.35583785,2451.4,2451.3,2.58518552]
[1751016227017,0.8156,2451.3,2451.2,0.43179552]
[1751016227315,28.82677925,2451.3,2451.2,5.52e-06]
[1751016228207,32.08311753,2451.3,2451.2,5.52e-06]
[1751016228514,28.82677925,2451.3,2451.2,5.52e-06]
[1751016232514,0.81574,2450.9,2450.8,0.7123]
[1751016232813,1.78961925,2450.9,2450.8,0.7123]
[1751016233214,2.44351925,2450.9,2450.8,0.7123]
[1751016234412,1.78961925,2450.9,2450.8,0.7123]
[1751016235906,1.78961925,2450.9,2450.8,2.0324]
[1751016236113,1.78961925,2450.9,2450.8,7.0324]
[1751016237015,1.78961925,2450.9,2450.8,7.84817]
[1751016237208,1.78961925,2450.9,2450.8,7.0324]
[1751016237518,1.78961925,2450.9,2450.8,7.84817]
[1751016237811,8.50291828,2451.6,2450.8,9.9546886]
[1751016238114,0.81567,2451.2,2451.1,2.9222886]
[1751016238306,0.81567,2451.2,2451.1,0.81567]
[1751016238506,0.81567,2451.2,2451.1,5.81567]
[1751016239109,0.81567,2451.2,2451.1,8.7379586]
[1751016240113,0.81567,2451.2,2451.1,7.9222886]
[1751016241016,0.81567,2451.2,2451.1,8.7379586]
[1751016242419,0.81562,2451.3,2451.1,8.7379586]
[1751016242619,0.81562,2451.3,2451.2,1.3673]
[1751016242817,3.2078,2451.6,2451.2,1.3673]
[1751016243021,0.8155,2451.6,2451.5,2.9222886]
[1751016244618,0.8156,2451.3,2451.2,1.3673]
[1751016245613,0.8156,2451.3,2451.2,5.1052286]
[1751016245820,0.8156,2451.3,2451.2,4.2895886]
[1751016247125,0.8156,2451.3,2451.2,5.1052286]
[1751016247325,0.81559,2451.4,2451.3,0.81559]
[1751016247830,0.81555,2451.5,2451.4,0.81554]
[1751016248030,0.81555,2451.5,2451.4,3.7378286]
[1751016248724,0.81553,2451.6,2451.5,0.81552]
[1751016249126,0.81554,2451.5,2451.4,3.7378386]
[1751016249522,0.81554,2451.6,2451.5,0.81553]
[1751016249723,0.81554,2451.5,2451.4,3.7378386]
[1751016250223,3.879,2451.9,2451.4,2.9222886]
[1751016250425,0.8155,2451.7,2451.6,3.7377786]
[1751016250629,1.79495264,2451.7,2451.6,3.7377786]
[1751016251121,1.79495264,2451.7,2451.6,2.9222886]
[1751016251322,1.79495264,2451.7,2451.6,3.7377886]
[1751016252122,1.79495264,2451.7,2451.6,2.9222886]
[1751016252330,0.8155,2451.7,2451.6,2.9222886]
[1751016252515,1.79441187,2451.7,2451.6,2.9222886]
[1751016252720,1.79441187,2451.7,2451.6,3.7377886]
[1751016252921,0.81554,2451.5,2451.4,5.1698386]
[1751016253223,0.81553,2451.6,2451.5,0.81552]
[1751016254831,0.81549,2451.7,2451.6,0.81548]
[1751016255023,0.81549,2451.7,2451.6,3.7377686]
[1751016255832,0.81546,2451.8,2451.7,0.81545]
[1751016256632,0.81547,2451.7,2451.6,3.7377686]
[1751016258037,3.879,2451.9,2451.7,0.81545]
[1751016258038,0.81546,2451.8,2451.7,0.81545]
[1751016259427,0.81542,2451.9,2451.8,0.81544]
[1751016259635,0.81542,2451.9,2451.8,3.7377286]
[1751016259931,0.81542,2451.9,2451.8,2.9222886]
[1751016260128,0.81542,2451.9,2451.8,3.7377286]
[1751016261833,0.81542,2451.9,2451.8,8.7377286]
[1751016262226,0.81542,2451.9,2451.8,10.1491286]
[1751016262731,0.6629,2452.3,2451.8,9.3336886]
[1751016262926,1.47818,2452.3,2452.2,0.8153]
[1751016263122,2.45535014,2452.3,2452.2,0.8153]
[1751016263323,0.8153,2452.2,2452.1,3.7375986]
[1751016263726,0.8153,2452.2,2452.1,2.9222886]
[1751016264131,2.1575,2452.2,2452.1,2.9222886]
[1751016264538,0.81534,2452.1,2452.0,4.02317]
[1751016265032,0.6629,2452.3,2452.0,3.2078]
[1751016265233,0.6629,2452.3,2452.2,0.8153]
[1751016265541,1.63923151,2452.3,2452.2,0.8153]
[1751016266342,0.8153,2452.2,2452.1,3.7375986]
[1751016269741,0.8153,2452.2,2452.1,4.4568986]
[1751016271844,0.8153,2452.2,2452.1,3.6415886]
[1751016272042,0.8153,2452.2,2452.1,2.9222886]
[1751016272539,2.1374,2452.2,2452.1,2.9222886]
[1751016274042,2.1374,2452.2,2452.0,10.47715]
[1751016274444,2.1374,2452.2,2452.1,0.81534]
[1751016275140,1.3221,2452.2,2452.1,3.7376286]
[1751016276047,1.47818,2452.3,2452.2,0.8153]
[1751016276235,2.45510347,2452.3,2452.2,0.8153]
[1751016277541,2.45510347,2452.3,2452.1,3.7375986]
[1751016277745,0.6629,2452.3,2452.1,2.9222886]
[1751016277944,0.6629,2452.3,2452.2,0.8153]
[1751016278147,2.4556092,2452.3,2452.2,0.8153]
[1751016278845,1.7927092,2452.3,2452.2,0.8153]
[1751016279040,1.49916,2452.4,2452.3,0.81527]
[1751016279241,1.47773,2452.5,2452.3,3.7375586]
[1751016279545,1.47773,2452.5,2452.4,0.81524]
[1751016279741,1.47773,2452.5,2452.4,1.50544]
[1751016280245,1.47773,2452.5,2452.4,0.6902]
[1751016282147,0.81524,2452.4,2452.3,6.1300886]
[1751016282347,0.81524,2452.4,2452.3,6.9453586]
[1751016283046,0.81524,2452.4,2452.3,3.2078]
[1751016283253,2.14974,2452.4,2452.3,3.2078]
[1751016285751,0.8153,2452.2,2452.1,3.7375986]
[1751016285947,1.9883,2452.3,2452.0,0.81536]
[1751016286143,0.7213,2452.1,2452.0,9.3662886]
[1751016286339,0.7213,2452.1,2452.0,10.1816586]
[1751016287950,1.53664,2452.1,2452.0,10.1816586]
[1751016288152,0.7213,2452.1,2452.0,10.1816586]
[1751016288645,1.53664,2452.1,2452.0,10.1816586]
[1751016288952,0.7213,2452.1,2452.0,10.1816586]
[1751016289451,1.53664,2452.1,2452.0,10.1816586]
[1751016291354,1.53664,2452.1,2452.0,3.7376586]
[1751016292358,0.81531,2452.2,2452.1,0.81534]
[1751016292545,1.52361,2452.2,2452.1,0.81534]
[1751016293851,0.81534,2452.1,2452.0,3.7376386]
[1751016296161,0.81534,2452.1,2452.0,3.7376586]
[1751016298965,0.81534,2452.1,2452.0,6.9454586]
[1751016301863,0.7083,2452.2,2452.0,6.1300886]
[1751016302165,1.53316,2452.4,2452.3,0.81527]
[1751016302365,2.51321748,2452.4,2452.3,0.81527]
[1751016303168,0.81527,2452.3,2452.2,3.7375686]
[1751016303370,1.79532748,2452.3,2452.2,3.7375686]
[1751016304268,0.81527,2452.3,2452.2,3.7375686]
[1751016304875,1.53316,2452.4,2452.3,0.81527]
[1751016305066,2.51334715,2452.4,2452.3,0.81527]
[1751016305261,0.81527,2452.3,2452.2,3.7375686]
[1751016305471,0.98027053,2452.3,2452.0,6.9454486]
[1751016305670,1.323,2452.2,2452.0,6.9454486]
[1751016305970,0.667,2452.1,2452.0,6.9454486]
[1751016306172,1.3582,2452.1,2452.0,6.9454486]
[1751016306369,2.17354,2452.1,2452.0,6.9454486]
[1751016307570,2.17354,2452.1,2452.0,13.3804486]
[1751016308077,1.3582,2452.1,2452.0,13.3804486]
[1751016308872,2.17354,2452.1,2452.0,13.3804486]
[1751016309673,3.2078,2452.6,2452.2,0.81527]